{"text_format":"3","workbook":"xlsx","n_sheets":1,"sheets":["Başlangıç Giderleri"],"not_rendered":{"defined_names":1},"read":"whole","date_system":"1900"}

{"sheet":"Başlangıç Giderleri","index":0,"n_rows":120,"n_cols":4,"rows_kept":120,"merged":[[1,1,1,3],[10,1,10,3],[17,1,17,3],[25,1,25,3],[34,1,34,3],[42,1,42,3],[50,1,50,3],[55,1,55,3],[57,1,57,3],[59,1,59,3],[60,1,60,3],[69,1,69,3],[76,1,76,3],[81,1,81,3],[82,1,82,3],[90,1,90,3],[102,1,102,3],[110,1,110,3],[115,1,115,3]]}
["BAŞLANGIÇ GİDERLERİ",null,null,"ŞİRKET ADI, LTD"]
[null,"BU ÇALIŞMA SAYFASININ KULLANMADAN ÖNCE BU NOTU OKUYUN\nYeni bir iş başlatan neredeyse herkes maliyetleri olduğundan az hesaplamakta ve sonrasında yetersiz sermaye ihtiyatlarıyla iş yapma tehlikesiyle karşı karşıya kalmaktadır. Bu tehlikeden kaçınmanın kilit noktası araştırma ve planlamanıza yönelik sağlam bir yaklaşım benimsemenizdir. Başlangıç Giderleri şablonumuz bu süreçte size yardımcı olacaktır.\n\nGİDERLERİ HESAPLAYARAK BAŞLAYIN\nİşletmenizi çalışır hale getirmenin maliyeti ne olacak? İsabetli olmanın kilit noktası ayrıntılara dikkat etmektir. Her bir gider kategorisi için satın almanız gereken her şeyin listesini oluşturun. Bu liste hem maddi varlıkları (örneğin ekipman, envanter) hem de hizmetleri (örneğin tadilat, sigorta) içerir. Ardından bu malları ve hizmetleri nereden satın alabileceğinizi belirleyin. Karşılaştırmalı alışveriş ile birden fazla sağlayıcıyı araştırın. Yalnızca fiyatlara bakmayın; ödeme koşulları, teslimat, güvenilirlik ve hizmet de önemlidir. "]
[]
[null,"BAŞLANGIÇ GİDERLERİ"]
[null,"YAPI/EMLAK"," ","TUTAR"]
[null,"Satın alma",null,{"v":0,"d":"0.00 ₺"}]
[null,"Yapı",null,{"v":0,"d":"0.00 ₺"}]
[null,"Tadilatı",null,{"v":0,"d":"0.00 ₺"}]
[null,"Diğer",null,{"v":0,"d":"0.00 ₺"}]
[null,"Toplam",null,{"$f":"SUBTOTAL(109,Emlak[TUTAR])","v":{"v":0,"d":"0.00 ₺"}}]
[]
[null,"ÖZEL MALİYETLER"," ","TUTAR"]
[null,"Öğe 1",null,{"v":0,"d":"0.00 ₺"}]
[null,"Öğe 2",null,{"v":0,"d":"0.00 ₺"}]
[null,"Öğe 3",null,{"v":0,"d":"0.00 ₺"}]
[null,"Öğe 4",null,{"v":0,"d":"0.00 ₺"}]
[null,"Toplam",null,{"$f":"SUBTOTAL(109,İyileştirmeler[TUTAR])","v":{"v":0,"d":"0.00 ₺"}}]
[]
[null,"SERMAYE DONATIMI LİSTESİ"," ","TUTAR"]
[null,"Mobilya",null,{"v":0,"d":"0.00 ₺"}]
[null,"Ekipman",null,{"v":0,"d":"0.00 ₺"}]
[null,"Armatürler",null,{"v":0,"d":"0.00 ₺"}]
[null,"Makine",null,{"v":0,"d":"0.00 ₺"}]
[null,"Diğer",null,{"v":0,"d":"0.00 ₺"}]
[null,"Toplam",null,{"$f":"SUBTOTAL(109,Sermaye[TUTAR])","v":{"v":0,"d":"0.00 ₺"}}]
[]
[null,"KONUM VE YÖNETİM GİDERLERİ"," ","TUTAR"]
[null,"Kiralama",null,{"v":0,"d":"0.00 ₺"}]
[null,"Hizmet depozitoları",null,{"v":0,"d":"0.00 ₺"}]
[null,"Hukuk ve muhasebe ücretleri",null,{"v":0,"d":"0.00 ₺"}]
[null,"Ön ödemeli sigorta",null,{"v":0,"d":"0.00 ₺"}]
[null,"Açılış öncesi maaşları ",null,{"v":0,"d":"0.00 ₺"}]
[null,"Diğer",null,{"v":0,"d":"0.00 ₺"}]
[null,"Toplam",null,{"$f":"SUBTOTAL(109,YönetimGiderleri[TUTAR])","v":{"v":0,"d":"0.00 ₺"}}]
[]
[null,"AÇILIŞ ENVANTERİ"," ","TUTAR"]
[null,"Kategori 1",null,{"v":0,"d":"0.00 ₺"}]
[null,"Kategori 2",null,{"v":0,"d":"0.00 ₺"}]
[null,"Kategori 3",null,{"v":0,"d":"0.00 ₺"}]
[null,"Kategori 4",null,{"v":0,"d":"0.00 ₺"}]
[null,"Kategori 5",null,{"v":0,"d":"0.00 ₺"}]
[null,"Toplam",null,{"$f":"SUBTOTAL(109,AçılışEnvanteri[TUTAR])","v":{"v":0,"d":"0.00 ₺"}}]
[]
[null,"REKLAM VE PROMOSYON GİDERLERİ"," ","TUTAR"]
[null,"Reklam",null,{"v":0,"d":"0.00 ₺"}]
[null,"İmzalama",null,{"v":0,"d":"0.00 ₺"}]
[null,"Yazdırma",null,{"v":0,"d":"0.00 ₺"}]
[null,"Seyahat/eğlence",null,{"v":0,"d":"0.00 ₺"}]
[null,"Diğer/ek kategoriler",null,{"v":0,"d":"0.00 ₺"}]
[null,"Toplam",null,{"$f":"SUBTOTAL(109,PromoGiderleri[TUTAR])","v":{"v":0,"d":"0.00 ₺"}}]
[]
[null,"DİĞER GİDERLER"," ","TUTAR"]
[null,"Diğer gider 1",null,{"v":0,"d":"0.00 ₺"}]
[null,"Diğer gider 2",null,{"v":0,"d":"0.00 ₺"}]
[null,"Toplam",null,{"$f":"SUBTOTAL(109,DiğerGiderler[TUTAR])","v":{"v":0,"d":"0.00 ₺"}}]
[]
[null,"İhtiyat Akçesi",null,{"v":0,"d":"0.00 ₺"}]
[]
[null,"İşletme Sermayesi ",null,{"v":0,"d":"0.00 ₺"}]
[]
[null,"İhtiyat Akçesi Ekleyin\nHikayenizde bu rezerve ayırdığınız tutara nasıl karar verdiğinizi açıkladığınızdan emin olun. \n\nNAKİT AKIŞINIZI BELİRLEYİN\nBoş bir banka hesabıyla açamazsınız. İşletme ilerlerken giderleri karşılamak için bir acil durum fonuna ihtiyacınız vardır. Nihayetinde 12 aylık bir nakit akışı projeksiyonunuz olmalıdır. İşletme sermayesi gereksinimlerinizin tahmini tutarını bunun üzerinden belirleyeceksiniz. Şimdilik ya bu satırı boş bırakın ya da en iyi kaba tahmininizi yazın. Nakit akışınızı tamamladıktan sonra geri dönüp dikkatli bir şekilde araştırılmış tutarı girebilirsiniz.\n\nSERMAYE KAYNAKLARINIZI GİRİN\nŞimdi başlamak için ne kadar sermayeye ihtiyacınız olduğunu hesapladığınıza göre dikkatinizi bu çalışma sayfasının en önemli kısmına yönlendirebilirsiniz. Sizin sağlayacağınız tutarları, ortakların veya yatırımcıların sağlayacağı tutarları ve borç ile sağlanacak tutarları girin."]
[]
[null,"SERMAYE KAYNAKLARI"]
[null,"SAHİPLERİN YATIRIMI (AD VE SAHİPLİK YÜZDESİ)"," ","TUTAR"]
[null,"Adınız ve yüzde sahipliği",null,{"v":0,"d":"0.00 ₺"}]
[null,"Diğer yatırımcı",null,{"v":0,"d":"0.00 ₺"}]
[null,"Diğer yatırımcı",null,{"v":0,"d":"0.00 ₺"}]
[null,"Diğer yatırımcı",null,{"v":0,"d":"0.00 ₺"}]
[null,"Toplam",null,{"$f":"SUBTOTAL(109,SahiplerinYatırımları[TUTAR])","v":{"v":0,"d":"0.00 ₺"}}]
[]
[null,"BANKA KREDİLERİ"," ","TUTAR"]
[null,"Banka 1",null,{"v":0,"d":"0.00 ₺"}]
[null,"Banka 2",null,{"v":0,"d":"0.00 ₺"}]
[null,"Banka 3",null,{"v":0,"d":"0.00 ₺"}]
[null,"Banka 4",null,{"v":0,"d":"0.00 ₺"}]
[null,"Toplam",null,{"$f":"SUBTOTAL(109,BankaKredileri[TUTAR])","v":{"v":0,"d":"0.00 ₺"}}]
[]
[null,"DİĞER KREDİLER"," ","TUTAR"]
[null,"Kaynak 1",null,{"v":0,"d":"0.00 ₺"}]
[null,"Kaynak 2",null,{"v":0,"d":"0.00 ₺"}]
[null,"Toplam",null,{"$f":"SUBTOTAL(109,DiğerKrediler[TUTAR])","v":{"v":0,"d":"0.00 ₺"}}]
[]
[null,"EK TEMİNAT KANITI SAĞLAYIN\nBu planı bir banka kredisi talebini desteklemek için kullanacaksanız krediyi almak için ek teminat olarak sunulan varlıkları ve bu öğelerin tahmini değerini göstermek üzere alt kısmın yanındaki bölümü kullanın. Ek teminat değerlerinizin tahmini değerine ilişkin bazı kanıtlar sunmaya hazırlanın."]
[]
[null,"ÖZET BİLDİRİM"]
[null,"SERMAYE KAYNAĞI"," ","TOPLAMLAR"]
[null,"Öz sermaye ve diğer yatırımlar",null,{"$f":"SahiplerinYatırımları[[#Totals],[TUTAR]]","v":{"v":0,"d":"0.00 ₺"}}]
[null,"Banka kredileri",null,{"$f":"BankaKredileri[[#Totals],[TUTAR]]","v":{"v":0,"d":"0.00 ₺"}}]
[null,"Diğer krediler",null,{"$f":"DiğerKrediler[[#Totals],[TUTAR]]","v":{"v":0,"d":"0.00 ₺"}}]
[null,"Toplam",null,{"$f":"SUBTOTAL(109,SermayeKaynakları[TOPLAMLAR])","v":{"v":0,"d":"0.00 ₺"}}]
[]
[null,"BAŞLANGIÇ GİDERLERİ"," ","TOPLAMLAR"]
[null,"Yapı/emlak",null,{"$f":"Emlak[[#Totals],[TUTAR]]","v":{"v":0,"d":"0.00 ₺"}}]
[null,"Özel maliyetler",null,{"$f":"İyileştirmeler[[#Totals],[TUTAR]]","v":{"v":0,"d":"0.00 ₺"}}]
[null,"Sermaye donatımı",null,{"$f":"Sermaye[[#Totals],[TUTAR]]","v":{"v":0,"d":"0.00 ₺"}}]
[null,"Konnum/yönetim giderleri",null,{"$f":"YönetimGiderleri[[#Totals],[TUTAR]]","v":{"v":0,"d":"0.00 ₺"}}]
[null,"Açılış envanteri",null,{"$f":"AçılışEnvanteri[[#Totals],[TUTAR]]","v":{"v":0,"d":"0.00 ₺"}}]
[null,"Reklam/promosyonn giderleri",null,{"$f":"PromoGiderleri[[#Totals],[TUTAR]]","v":{"v":0,"d":"0.00 ₺"}}]
[null,"Diğer giderler",null,{"$f":"DiğerGiderler[[#Totals],[TUTAR]]","v":{"v":0,"d":"0.00 ₺"}}]
[null,"İhtiyat fonu",null,{"$f":"SUM('Başlangıç Giderleri'!$C$57)","v":{"v":0,"d":"0.00 ₺"}}]
[null,"İşletme sermayesi",null,{"$f":"SUM('Başlangıç Giderleri'!$C$59)","v":{"v":0,"d":"0.00 ₺"}}]
[null,"Toplam",null,{"$f":"SUBTOTAL(109,BaşlangıçGiderleri[TOPLAMLAR])","v":{"v":0,"d":"0.00 ₺"}}]
[]
[null,"KREDİ TEKLİFİ İÇİN HİSSE SENEDİ VE EK TEMİNAT"]
[null,"KREDİLER İÇİNN EK TEMİNAT","AÇIKLAMA","DEĞER"]
[null,"Emlak",null,{"v":0,"d":"0.00 ₺"}]
[null,"Diğer ek teminat",null,{"v":0,"d":"0.00 ₺"}]
[null,"Diğer ek teminat",null,{"v":0,"d":"0.00 ₺"}]
[null,"Diğer ek teminat",null,{"v":0,"d":"0.00 ₺"}]
[null,"Toplam",null,{"$f":"SUBTOTAL(109,EkTeminat[DEĞER])","v":{"v":0,"d":"0.00 ₺"}}]
[]
[null,"SAHİPLER"," ","  "]
[null,"Adınızı buraya girin"]
[null,"Diğer sahip"]
[null,"Diğer sahip"]
[]
[null,"KREDİ GARANTÖRLERİ (SAHİPLER DIŞINDA)"," ","  "]
[null,"Kredi garantörü 1"]
[null,"Kredi garantörü 2"]
[null,"Kredi garantörü 3"]